Cogmind - Beta 9.6 @@@ ROGUE MODE // 2020.05.30 @ 03:03:19 Player: pGoos Result: Destroyed by as-30736 with Assembled Heavy Rifle Performance ------------- Evolutions (1) 500 Regions Visited (3) 600 Robots Destroyed (10) 50 Value Destroyed (173) 173 Prototype IDs (0) 0 Alien Tech Used (0) 0 Bonus (0) 0 TOTAL SCORE: 1323 Bonus ------- None Cogmind --------- Core Integrity 0/400 Matter 300/300 Energy 100/100 System Corruption 0% Temperature Cool (0) Movement Core (600) Ox11 Location -9/Mines Parts ------- > --- POWER (1) -------- (None) > --- PROPULSION (3) --- (None) > --- UTILITY (3) ------ Small Storage Unit High-capacity Storage Unit > --- WEAPON (2) ------- (None) > --- INVENTORY (14) --- High-capacity Matter Pod (199) Grenade Launcher Peak State ------------ > --- POWER ------------ Light Ion Engine > --- PROPULSION ------- Aluminum Leg Aluminum Leg > --- UTILITY ---------- Small Storage Unit High-capacity Storage Unit Hardened Light Armor Plating > --- WEAPON ----------- EM Pulse Gun Heavy Assault Rifle > --- INVENTORY -------- Ion Engine Wheel Compact Wheel High-capacity Matter Pod Beam Cannon Beam Cannon Assault Rifle Light Assault Rifle Light Assault Rifle Grenade Launcher [Rating: 11] Favorites ----------- Power Light Ion Engine Engine Light Ion Engine Propulsion Aluminum Leg Leg Aluminum Leg Wheel Compact Wheel Utility Small Storage Unit Storage Small Storage Unit Protection Hardened Light Armor Plating Weapon EM Pulse Gun Energy Gun EM Pulse Gun Energy Cannon Beam Cannon Ballistic Gun Assault Rifle Build | -11 -10 -9 -9 ------- Run | Scr Mat Mat Min Slots Evolved 2 | . . 2 . Power . | . . . . Propulsion 1 | . . 1 . Utility 1 | . . 1 . Weapon . | . . . . Parts Attached 18 | 6 2 3 7 Power 3 | 1 1 . 1 Engine 3 | 1 1 . 1 Core . | . . . . Reactor . | . . . . Propulsion 4 | 2 . . 2 Treads . | . . . . Leg 2 | 2 . . . Wheel 2 | . . . 2 Hover . | . . . . Flight . | . . . . Utility 4 | 1 1 2 . Device . | . . . . Storage 3 | 1 1 1 . Processor . | . . . . Hackware . | . . . . Protection 1 | . . 1 . Artifact . | . . . . Weapon 7 | 2 . 1 4 Energy Gun 1 | 1 . . . Energy Cannon 2 | . . . 2 Ballistic Gun 4 | 1 . 1 2 Ballistic Cannon . | . . . . Launcher . | . . . . Special Weapon . | . . . . Impact Weapon . | . . . . Slashing Weapon . | . . . . Piercing Weapon . | . . . . Special Melee Weapon . | . . . . Unidentified Prototypes . | . . . . Parts Lost 13 | . . 5 8 Power 2 | . . 1 1 Propulsion 4 | . . 1 3 Utility 1 | . . 1 . Weapon 6 | . . 2 4 Highest Loss Streak 8 | . . 5 8 Average Slot Usage (%) 89 | . 98 83 62 Engine 11 | . 14 10 1 Leg 23 | . 28 21 8 Wheel 2 | . . . 14 Storage 25 | . 27 23 22 Protection 2 | . . 8 . Energy Gun 10 | . 14 9 . Ballistic Gun 13 | . 14 9 16 Naked Turns . | . . . . Heaviest Build 49 | 11 43 49 38 Greatest Support 26 | 20 20 20 26 Greatest Overweight (x) 11 | . 2 4 11 Average Overweight (x) 1 | . 1 2 1 Largest Inventory Capacity 14 | 6 14 14 14 Average Capacity 12 | 5 13 14 14 Most Carried 10 | 4 9 10 8 Average Carried 6 | 2 6 8 4 Final Capacity 14 | 6 14 14 14 Final Carried 9 | 4 9 9 2 Class Distribution -------------------- 100% | Mutant Dominant Class ---------------- Mutant | -10/Materials Mutant | -9/Materials Mutant | -9/Mines Resources | -11 -10 -9 -9 ----------- Run | Scr Mat Mat Min Matter Collected 577 | 266 157 81 73 Remotely . | . . . . Salvage Created 368 | 26 207 115 20 Parts 29 | 2 15 12 . Haulers Intercepted . | . . . . Recyclers Shooed . | . . . . Parts Field Recycled . | . . . . Retrieved Matter . | . . . . Parts Self-Destructed . | . . . . Prevented . | . . . . Kills | -11 -10 -9 -9 ------- Run | Scr Mat Mat Min Combat Hostiles Destroyed 7 | . 4 2 1 Guns 7 | . 4 2 1 Classes Destroyed 6 | 1 3 1 1 Tunneler 2 | 1 . 1 . Recycler 1 | . 1 . . Swarmer 3 | . 3 . . Grunt 2 | . 1 1 . Sentry 1 | . . 1 . Assembled 1 | . . . 1 Best Kill Streak 3 | 1 3 1 1 Combat Bots Only 3 | . 3 1 1 Max Kills in Single Turn 1 | 1 1 1 1 Gunslinging . | . . . . Exploded . | . . . . Melee . | . . . . Uniques/NPCs Destroyed . | . . . . Combat | -11 -10 -9 -9 -------- Run | Scr Mat Mat Min Damage Taken 1813 | . 293 693 827 Core 482 | . 77 130 275 Absorbed by Shields . | . . . . Core Remaining (%) 84 | 100 69 . . Volleys Fired 35 | 2 13 11 9 Largest 2 | 2 2 2 2 Hottest 63 | 60 60 63 40 Shots Fired 65 | 4 26 21 14 Gun 65 | 4 26 21 14 Cannon . | . . . . Launcher . | . . . . Special . | . . . . Kinetic 40 | 2 13 11 14 Thermal . | . . . . Explosive . | . . . . Electromagnetic 25 | 2 13 10 . Robot Hit Streak 17 | 1 5 11 17 Robot Miss Streak 3 | 3 3 1 2 Penetration Max . | . . . . Secondary Targets 1 | . . . 1 Max Gunslinging Chain 1 | . . . 1 Shots Hit Robots 41 | 1 15 16 9 Core Hits 21 | 1 8 6 6 Critical Hits . | . . . . Critical Kills . | . . . . Critical Parts Destroyed . | . . . . Melee Attacks . | . . . . Impact . | . . . . Slashing . | . . . . Piercing . | . . . . Sneak Attacks . | . . . . Combat Hostiles . | . . . . Follow-up Attacks . | . . . . Damage Inflicted 635 | 23 260 234 118 Guns 526 | 23 203 218 82 Cannons . | . . . . Explosions 47 | . 47 . . Melee . | . . . . Ramming 62 | . 10 16 36 Kinetic 314 | 11 92 129 82 Thermal 47 | . 47 . . Explosive . | . . . . Electromagnetic 212 | 12 111 89 . Impact . | . . . . Slashing . | . . . . Piercing . | . . . . Highest Corruption . | . . . . Average Corruption . | . . . . Corruption Purged . | . . . . Overload Shots . | . . . . Overflow Damage 17 | . 17 . . Projectiles . | . . . . Explosions 17 | . 17 . . Melee . | . . . . Knockbacks . | . . . . Impact . | . . . . Kinetic . | . . . . Secondary . | . . . . Self-Inflicted Damage 29 | . 5 7 17 Shots . | . . . . Rammed 11 | . 2 3 6 Targets Rammed 11 | . 2 3 6 Kicked . | . . . . Crushed . | . . . . Highest Temperature 69 | . 39 69 12 Average Temperature 26 | . 27 28 8 Received Heat Transfer 661 | . 96 261 304 Siege Activations . | . . . . Robots Corrupted . | . . . . Combat Hostiles . | . . . . Parts Fried . | . . . . Impact Corruptions . | . . . . Robots Melted . | . . . . Combat Hostiles . | . . . . Parts Melted . | . . . . Heat Transferred 50 | . 50 . . Parts Sabotaged . | . . . . Parts Stolen . | . . . . Parts Stripped . | . . . . Power Chain Reactions 1 | . 1 . . Missiles Intercepted . | . . . . Alert | -11 -10 -9 -9 ------- Run | Scr Mat Mat Min Peak Influence 143 | 5 143 89 16 Average Influence 53 | 1 79 46 10 Maximum Alert Level . | . . . . Low Security (%) 100 | 100 100 100 100 Level 1 . | . . . . Level 2 . | . . . . Level 3 . | . . . . Level 4 . | . . . . Level 5 . | . . . . High Security . | . . . . Max Security . | . . . . Squads Dispatched 2 | . . 2 . Investigation 1 | . . 1 . Extermination . | . . . . Reinforcement 1 | . . 1 . Assault . | . . . . Garrison . | . . . . Intercept . | . . . . Construction Impeded . | . . . . Haulers Reinforced . | . . . . Stealth | -11 -10 -9 -9 --------- Run | Scr Mat Mat Min Distress Signals 2 | . . 2 . Communications Jammed . | . . . . Distress Signals . | . . . . Times Spotted 32 | . 7 9 16 Peak Tracking Total 11 | . 3 6 11 Tactical Retreats 4 | . 1 . 3 Traps | -11 -10 -9 -9 ------- Run | Scr Mat Mat Min Traps Triggered . | . . . . Indirectly . | . . . . Trap Hack Attempts . | . . . . Triggered . | . . . . Disarmed . | . . . . Reprogrammed 6 | . . 6 . Reused . | . . . . Traps Extracted . | . . . . Installed . | . . . . Triggered . | . . . . Machines | -11 -10 -9 -9 ---------- Run | Scr Mat Mat Min Machines Disabled 1 | . 1 . . Max in Single Turn 1 | . 1 . . Machines Sabotaged . | . . . . Garrisons Compromised . | . . . . Overloaded Fab Kills . | . . . . Fab Network Shutdowns . | . . . . Hacking | -11 -10 -9 -9 --------- Run | Scr Mat Mat Min Machines Accessed 3 | . 1 2 . Terminals 3 | . 1 2 . Fabricators . | . . . . Repair Stations . | . . . . Recycling Units . | . . . . Scanalyzers . | . . . . Garrison Access . | . . . . Total Hacks 8 | . 2 6 . Successful 4 | . 1 3 . Failed 4 | . 1 3 . Catastrophic 1 | . . 1 . Database Lockouts . | . . . . Manual . | . . . . Terminals 8 | . 2 6 . Fabricators . | . . . . Repair Stations . | . . . . Recycling Units . | . . . . Scanalyzers . | . . . . Garrison Access . | . . . . Terminal Hacks 4 | . 1 3 . Alert Level 1 | . . 1 . Locate Traps 2 | . 1 1 . Reprogram Traps 1 | . . 1 . Fabricator Hacks . | . . . . Repair Station Hacks . | . . . . Recycling Unit Hacks . | . . . . Scanalyzer . | . . . . Garrison Access Hacks . | . . . . Unauthorized Hacks . | . . . . Terminals . | . . . . Fabricators . | . . . . Repair Stations . | . . . . Recycling Units . | . . . . Scanalyzers . | . . . . Garrison Access . | . . . . Data Cores Recovered . | . . . . Used . | . . . . Hacking Detections 3 | . 1 2 . Full Trace Events 1 | . . 1 . Feedback Events . | . . . . Feedback Blocked . | . . . . Robot Schematics Acquired . | . . . . Robots Built . | . . . . Matter . | . . . . Time . | . . . . Total Robot Build Rating . | . . . . Part Schematics Acquired . | . . . . Parts Built . | . . . . Matter . | . . . . Time . | . . . . Total Part Build Rating . | . . . . Parts Repaired . | . . . . Time . | . . . . Parts Recycled . | . . . . Recycled Matter . | . . . . Retrieved Matter . | . . . . Retrieved Components . | . . . . Parts Scanalyzed . | . . . . Part Schematics Acquired . | . . . . Parts Damaged . | . . . . Bothacking | -11 -10 -9 -9 ------------ Run | Scr Mat Mat Min Used RIF Installer . | . . . . Robots Hacked . | . . . . Non-combat . | . . . . Combat . | . . . . Robot Hacks Applied . | . . . . Relay Couplers Released . | . . . . Robots Rewired . | . . . . Allies Hacked . | . . . . Hacks Repelled . | . . . . Allies | -11 -10 -9 -9 -------- Run | Scr Mat Mat Min Total Allies . | . . . . Largest Group . | . . . . Highest-Rated Group . | . . . . Highest-Rated Ally . | . . . . Total Orders . | . . . . Ally Attacks . | . . . . Total Damage . | . . . . Kills . | . . . . Allies Corrupted . | . . . . Allies Melted . | . . . . Intel | -11 -10 -9 -9 ------- Run | Scr Mat Mat Min Robot Analysis Total . | . . . . Derelict Logs Recovered 1 | . . . 1 Drone Launches . | . . . . Drone Recoveries . | . . . . Exploration | -11 -10 -9 -9 ------------- Run | Scr Mat Mat Min Turns Passed 833 | 93 417 210 113 Spaces Moved 432 | 65 213 93 61 Core 6 | 5 . . 1 Treads . | . . . . Legs 366 | 60 213 93 . Wheels 60 | . . . 60 Hover . | . . . . Flight . | . . . . Fastest Speed 50 | 50 120 180 100 Average Speed 156 | 114 172 181 108 Slowest Speed 600 | 120 180 240 600 Overloaded Moves . | . . . . Propulsion Burnouts . | . . . . Robots Hopped . | . . . . Cave-ins Triggered . | . . . . Exploration Rate (%) 17 | 3 27 20 18 Regions Visited 3 Branch Regions 1 Pre-discovered Areas 1 | . . . 1 Known Exits Taken . | . . . . Unknown Exits Taken 3 | 1 1 1 . Scrap Searched . | . . . . Spaces Dug . | . . . . Terrain Destroyed 6 | . 6 . . Melee . | . . . . Projectile . | . . . . AOE 6 | . 6 . . Actions | -11 -10 -9 -9 --------- Run | Scr Mat Mat Min Total 506 | 76 235 111 84 Wait 1 | . . . 1 Move 429 | 64 212 92 61 Hop . | . . . . Pick Up 9 | 4 5 . . Fast Attach 8 | 6 1 1 . Attach 8 | . . 1 7 Detach 1 | . . 1 . Swap 2 | . 1 1 . Drop 2 | . 1 1 . Fire 35 | 2 13 11 9 Melee . | . . . . Ram 6 | . . . 6 Kick 5 | . 2 3 . Crush . | . . . . Escape Stasis . | . . . . Rewire . | . . . . Trap . | . . . . Miscellaneous . | . . . . Route ------- -11/Scrapyard -10/Materials -9/Materials -9/Mines (discovered 1 exit: [*Mat]) History --------- Turn | Location | Event 2 | -11/Scrapyard | Discovered new exit (range 16) 94 | -11/Scrapyard | Entered Materials 234 | -10/Materials | Discovered new exit (range 3) 300 | -10/Materials | Build established: Mutant 511 | -10/Materials | Entered another Materials area 511 | -9/Materials | Evolved 2 slots: Propulsion x1, Utility x1 669 | -9/Materials | Discovered new exit (range 16) 721 | -9/Materials | Entered Mines 722 | -9/Mines | Assembled infested the area 727 | -9/Mines | Assisted by a Guerilla fighting off Assembled 746 | -9/Mines | Lost 5 parts (1p1n1u2w) 771 | -9/Mines | Discovered new exit (range 12) 811 | -9/Mines | Core integrity fell below 50% 819 | -9/Mines | Core integrity fell below 20% 834 | -9/Mines | Destroyed by as-30736 with Assembled Heavy Rifle Last Messages --------------- 00763_ as-68844 knocked back. 00766_ Slammed into U-05 Engineer. 00769_ Slammed into T-07 Excavator. 00771_ EXIT=FOUND 00789_ G-47 Trooper destroyed. 00793_ Slammed into as-68735. 00793_ Wheel destroyed. 00795_ Com. Wheel destroyed. 00799_ R-06 Scavenger destroyed. 00800_ as-68735 destroyed. 00800_ Switching to secondary target: as-52993. 00802_ Lgt. Assault Rifle destroyed. 00804_ Aluminum Leg destroyed. 00808_ Lgt. Assault Rifle destroyed. 00810_ Acquired 20 matter. 00816_ Slammed into as-93761. 00826_ Acquired 53 matter. 00829_ Beam Cannon destroyed. 00832_ Ion Engine destroyed. 00833_ Slammed into as-30736. Map ----- +----------------------------------------------------+ | ?????????????# ########???????????????? | | ?????????????# #??????????????????????? | | ????????????## #??????????????????????? | | ?????????#### ]##?????????????????????? | | ????????## ]! ##????????????????????? | | ????????# #????????????????????? | | ????????## ] #????????????????????? | | ?????????#### ! #????????????????????? | | ????????????## !######????????????????? | | ??????????#### #????????????????? | | ??????????# #### #????????????????? | | ??????????# ## =#?????????????????????? | | ??????????#??# %#?????????????????????? | | ??????????# ## =##????????????????????? | | ??# ### %= ###??????????????????? | | ?# % ##?????????????????? | | ##!%| #######???????????? | | ## #?##*==% #???????????? | | ?# ##???##%!| #???????????? | | ?# ???????## ## ### #???????????? | | ?# ?????????# ## #?# #???????????? | | ?## ??????????# #?# #???????????? | | ??###???????????# ####?#a#???????????? | | ????????????????# #????#*#???????????? | | ????????????????# #????#a#???????????? | | ????????????????# #???##@##??????????? | | ????????????????# #???#aa #??????????? | | ????????????????# a%=#??????????? | | ????????????????# =* #?????????? | | ????????????????########=%!%= ????????? | | ???????????????????????##=a ???????? | | ????????????????????????## ??????? | | ?????????????????????????? ?????? | | ?????????????????????????? * * ????? | | ?????????????????????????? !%%<% #???? | | ?????????????????????????? ==*= #???? | | ??????????????????????????##### ##???? | | ???????????????????????????????###????? | | ??????????????????????????????????????? | | ??????????????????????????????????????? | | ??????????????????????????????????????? | | ??????????????????????????????????????? | | ??????????????????????????????????????? | | ??????????????????????????????????????? | | ??????????????????????????????????????? | | ??????????????????????????????????????? | | ??????????????????????????????????????? | | ??????????????????????????????????????? | | ??????????????????????????????????????? | | ??????????????????????????????????????? | +----------------------------------------------------+ Best States ------------- Heat Dissipation 28 Energy Generation 10 Energy Capacity 250 Matter Stores 392 Matter Capacity 500 Sight Range 16 Terrain Scan Density 10 Armor Coverage 150 Evasion (%) 40 Item Schematics ----------------- None Robot Schematics ------------------ None Fabricated ------------ Nothing Alien Tech Used ----------------- None Achievements -------------- None Challenges ------------ None Game ------ Seed CentriumRestorationRigger Manual? 0 Play Time 00:13:45 Cumulative 14.4 hours Start 2020.05.30 @ 02:51:39 End 2020.05.30 @ 03:03:19 Sessions 1 Manual Loads 0 Difficulty Rogue Special Mode None Game No. 23 Rogue 23 Adventurer 0 Explorer 0 Win Type - Total 0 Types 0/0/0/0/0/0/0 Lore% 15 Gallery% 18 Achievement% 16 Wizard Run 0 Options --------- ASCII 0 Keyboard 0 Movement Mouse Keybinds 0 Fullscreen 2 Font 24/Terminus Map View 113x50 Tactical HUD 1 Map Filters NONE Filters NONE Steam 1 RUN: 87c5b594-f41e-4179-a757-ade098684098